fUSD/lending_fUSD_20250905
["ID","MTS","AMOUNT","RATE_DAILY","PERIOD"]
[383655066,1757073045530,-405.26802903,0.00024899,2]
[383655067,1757073045539,-400.0,0.00024899,2]
[383655068,1757073045549,-400.0,0.00024899,2]
[383655069,1757073045560,-400.0,0.00024899,2]
[383655070,1757073045571,-400.0,0.00024899,2]
[383655071,1757073045581,-400.0,0.00024899,2]
[383655072,1757073045590,-400.0,0.00024899,2]
[383655073,1757073045599,-400.0,0.00024899,2]
[383655074,1757073045609,-400.0,0.00024899,2]
[383655075,1757073045619,-400.0,0.00024899,2]
[383655076,1757073045628,-400.0,0.00024899,2]
[383655077,1757073045638,-400.0,0.00024899,2]
[383655078,1757073045646,-400.0,0.00024899,2]
[383655079,1757073045657,-400.0,0.00024899,2]
[383655080,1757073045666,-400.0,0.00024899,2]
[383655082,1757073045675,-400.0,0.00024899,2]
[383655084,1757073045684,-400.0,0.00024899,2]
[383655085,1757073045693,-400.0,0.00024899,2]
[383655086,1757073045702,-400.0,0.00024899,2]
[383655087,1757073045711,-400.0,0.00024899,2]
[383655088,1757073045721,-400.0,0.00024899,2]
[383655089,1757073045730,-400.0,0.00024899,2]
[383655090,1757073045740,-400.0,0.00024899,2]
[383655091,1757073045750,-400.0,0.00024899,2]
[383655092,1757073045760,-400.0,0.00024899,2]
[383655093,1757073045771,-400.0,0.00024899,2]
[383655094,1757073045781,-400.0,0.00024899,2]
[383655095,1757073045792,-400.0,0.00024899,2]
[383655096,1757073045804,-400.0,0.00024899,2]
[383655097,1757073045814,-400.0,0.00024899,2]
[383655098,1757073045824,-1200.0,0.000249,9]
[383655099,1757073045834,-4436.96066736,0.000249,2]
[383655100,1757073045843,-19012.7713651,0.00024911,3]
[383655101,1757073045852,-500.0,0.0002492,2]
[383655102,1757073045861,-110187.578495,0.00024921,3]
[383655103,1757073045871,-25918.7922638,0.00024921,3]
[383655104,1757073047326,-3092.26591958,0.00024921,3]
[383655105,1757073047393,-2.18990434,0.00024657,2]
[383655106,1757073047534,-279.52,0.00024045,2]
[383655107,1757073047544,-400.13009268,0.00024657,2]
[383655108,1757073047553,-238.75615398,0.00024657,2]
[383655109,1757073047566,-161.24384602,0.00024657,2]
[383655110,1757073047576,-320.34990732,0.00024657,2]
[383655111,1757073047724,-79.65009268,0.00024657,2]
[383655112,1757073047732,-400.0,0.00024657,2]
[383655113,1757073047741,-400.0,0.00024657,2]
[383655114,1757073047749,-400.0,0.00024657,2]
[383655115,1757073047758,-400.0,0.00024657,2]
[383655116,1757073047767,-400.0,0.00024657,2]
[383655117,1757073047775,-400.0,0.00024657,2]
[383655118,1757073047786,-404.08749194,0.00024657,2]
[383655119,1757073047795,-400.0,0.00024657,2]
[383655120,1757073047804,-400.0,0.00024657,2]
[383655121,1757073047815,-400.0,0.00024899,2]
[383655122,1757073047824,-400.0,0.00024899,2]
[383655123,1757073047834,-56918.86080742,0.00024921,3]
[383655124,1757073047847,-6216.93891218,0.00024921,3]
[383655125,1757073047859,-2057.49519777,0.00024921,3]
[383655126,1757073047871,-668.30843146,0.00024921,3]
[383655127,1757073047883,-862.34576658,0.00024921,3]
[383655133,1757073336836,155.74,0.00013699,2]
[383655143,1757073949090,-150.0,0.00022414,2]
[383655144,1757073949113,-150.0,0.00022414,2]
[383655145,1757073953631,-150.0,0.00022414,2]
[383655146,1757073953653,-87.90611291,0.00022414,2]
[383655147,1757073959553,-62.09388709,0.00022414,2]
[383655148,1757073959580,-150.0,0.00022414,2]
[383655149,1757073972853,250.0,0.00015,2]
[383655150,1757073973971,300.0,0.00017,2]
[383655158,1757074231932,-300.0,0.00022413,2]
[383655159,1757074231942,-419.0,0.00022413,2]
[383655160,1757074231951,-300.0,0.00022413,2]
[383655161,1757074231961,-150.0,0.00022414,2]
[383655162,1757074231970,-150.0,0.00022414,2]
[383655163,1757074231980,-150.0,0.00022414,2]
[383655164,1757074231989,-16.33461833,0.00022414,2]
[383655165,1757074232004,-133.66538167,0.00022414,2]
[383655166,1757074232014,-150.0,0.00022414,2]
[383655167,1757074232024,-150.0,0.00022414,2]
[383655168,1757074232033,-150.0,0.00022414,2]
[383655169,1757074232042,-150.0,0.00022414,2]
[383655170,1757074232051,-878.7989179,0.00022414,2]
[383655171,1757074232062,-14.0420821,0.00022414,2]
[383655172,1757074232072,-1000.0,0.00022414,2]
[383655173,1757074232081,-566.71003451,0.00022414,2]
[383655174,1757074232092,-128.80196549,0.00022414,2]
[383655175,1757074232102,-151.0,0.00022861,2]
[383655176,1757074232111,-395.9020356,0.00023,14]
[383655177,1757074232120,-160.0,0.00023098,7]
[383655178,1757074232129,-2751.0,0.00023112,2]
[383655179,1757074232139,-89.40136278,0.00023532,2]
[383655180,1757074232150,-754.41751679,0.00023532,2]
[383655181,1757074232163,-364.0,0.00023532,2]
[383655182,1757074232205,-109.61112043,0.00023532,2]
[383655183,1757074232214,-150.0,0.00023643,2]
[383655184,1757074232224,-404.33,0.00023646,2]
[383655185,1757074232234,-354.36,0.0002369,2]
[383655186,1757074232243,-850.53,0.00023798,2]
[383655187,1757074232253,-151.0,0.00023842,2]
[383655188,1757074232263,-192.4554775,0.00023842,2]
[383655189,1757074232272,-500.0,0.00023842,2]
[383655190,1757074232282,-435.94128359,0.00023842,2]
[383655191,1757074232292,-500.0,0.00023855,2]
[383655192,1757074232301,-500.0,0.00023855,2]
[383655194,1757074232310,-321.89378295,0.00023855,2]
[383655195,1757074232319,-500.0,0.00023855,2]
[383655196,1757074232329,-316.94684626,0.00023855,2]
[383655197,1757074232339,-23777.8,0.00023856,2]
[383655198,1757074232348,-161.17,0.00023865,2]
[383655199,1757074232357,-436.68,0.00023885,2]
[383655201,1757074232367,-500.0,0.00023897,2]
[383655203,1757074232377,-153.51968228,0.00023911,2]
[383655205,1757074232386,-202.9592097,0.00023911,2]
[383655208,1757074232395,-30221.55,0.00023912,7]
[383655211,1757074232404,-500.0,0.00023952,2]
[383655214,1757074232414,-3010.69135387,0.00024,7]
[383655217,1757074232424,-500.0,0.00024007,2]
[383655219,1757074232433,-500.0,0.00024062,2]
[383655222,1757074232443,-1426.0,0.000241,2]
[383655225,1757074232453,-399.56199263,0.00024199,2]
[383655228,1757074232462,-5887.88874739,0.00024199,2]
[383655232,1757074232475,-2677.86681172,0.00024199,2]
[383655235,1757074232484,-151.0,0.00024199,2]
[383655237,1757074232493,-151.0,0.00024199,2]
[383655238,1757074232502,-151.0,0.00024199,2]
[383655239,1757074232511,-151.0,0.00024199,2]
[383655240,1757074232521,-250.0,0.00024199,2]
[383655241,1757074232530,-151.0,0.00024199,2]
[383655242,1757074232539,-187.78006524,0.00024199,2]
[383655243,1757074232549,-250.0,0.00024199,2]
[383655244,1757074232558,-250.0,0.00024199,2]
[383655245,1757074232567,-283.83879548,0.00024199,2]
[383655246,1757074232576,-1000.0,0.00024199,2]
[383655247,1757074232585,-250.0,0.00024199,2]
[383655248,1757074232594,-56.94077008,0.00024199,2]
[383655249,1757074232606,-193.05922992,0.00024199,2]
[383655250,1757074232615,-250.0,0.00024199,2]
[383655251,1757074232624,-250.0,0.00024199,2]
[383655252,1757074232634,-250.0,0.00024199,2]
[383655253,1757074232643,-250.0,0.00024199,2]
[383655254,1757074232653,-250.0,0.00024199,2]
[383655255,1757074232663,-250.0,0.00024199,2]
[383655256,1757074232672,-250.0,0.00024199,2]
[383655257,1757074232682,-250.0,0.00024199,2]
[383655258,1757074232691,-250.0,0.00024199,2]
[383655259,1757074232700,-250.0,0.00024199,2]
[383655260,1757074232709,-250.0,0.00024199,2]
[383655261,1757074232719,-250.0,0.00024199,2]
[383655262,1757074232728,-250.0,0.00024199,2]
[383655263,1757074232738,-250.0,0.00024199,2]
[383655264,1757074232752,-250.0,0.00024199,2]
[383655265,1757074232761,-320.020532,0.00024199,2]
[383655266,1757074232770,-250.0,0.00024199,2]
[383655267,1757074232779,-250.0,0.00024199,2]
[383655268,1757074232790,-250.0,0.00024199,2]
[383655269,1757074232799,-250.0,0.00024199,2]
[383655270,1757074232808,-284.5214761,0.00024199,2]
[383655271,1757074232819,-264.5685044,0.00024199,2]
[383655272,1757074232828,-250.0,0.00024199,2]
[383655273,1757074232837,-187.9126971,0.00024199,2]
[383655274,1757074232847,-151.0,0.00024199,2]
[383655275,1757074232857,-248.71531821,0.00024199,2]
[383655276,1757074232866,-151.0,0.00024199,2]
[383655277,1757074232875,-151.0,0.00024199,2]
[383655278,1757074232884,-151.0,0.00024199,2]
[383655279,1757074232893,-151.0,0.00024199,2]
[383655280,1757074232903,-151.0,0.00024199,2]
[383655281,1757074232912,-151.0,0.00024199,2]
[383655282,1757074232922,-151.0,0.00024199,2]
[383655283,1757074232931,-646.65982734,0.00024199,2]
[383655284,1757074232940,-151.0,0.00024199,2]
[383655285,1757074232950,-151.0,0.00024199,2]
[383655286,1757074232959,-151.0,0.00024199,2]
[383655287,1757074232967,-151.0,0.00024199,2]
[383655288,1757074232975,-151.0,0.00024199,2]
[383655289,1757074232984,-151.0,0.00024199,2]
[383655290,1757074232994,-151.0,0.00024199,2]
[383655291,1757074233010,-151.0,0.00024199,2]
[383655292,1757074233019,-151.0,0.00024199,2]
[383655293,1757074233028,-151.0,0.00024199,2]
[383655294,1757074233038,-160.0,0.00024199,2]
[383655295,1757074233048,-250.0,0.00024199,2]
[383655296,1757074233058,-250.0,0.00024199,2]
[383655297,1757074233068,-250.0,0.00024199,2]
[383655298,1757074233078,-250.0,0.00024199,2]
[383655299,1757074233088,-250.0,0.00024199,2]
[383655300,1757074233097,-250.0,0.00024199,2]
[383655301,1757074233106,-250.0,0.00024199,2]
[383655302,1757074233116,-250.0,0.00024199,2]
[383655303,1757074233126,-250.0,0.00024199,2]
[383655304,1757074233136,-250.0,0.00024199,2]
[383655305,1757074233145,-250.0,0.00024199,2]
[383655306,1757074233155,-250.0,0.00024199,2]
[383655307,1757074233165,-841.61885968,0.00024245,2]
[383655308,1757074233175,-420.0,0.00024345,2]
[383655309,1757074233184,-168.0,0.0002441,2]
[383655310,1757074233194,-841.61885968,0.00024467,2]
[383655311,1757074233203,-155.08234133,0.00024557,2]
[383655312,1757074233213,-156.08587707,0.00024557,2]
[383655313,1757074233222,-6662.72151102,0.00024557,2]
[383655314,1757074233233,-150.0,0.00024632,2]
[383655315,1757074233243,-802.12906909,0.00024634,2]
[383655316,1757074233252,-1022.32136257,0.00024636,2]
[383655317,1757074233262,-1242.51365604,0.00024637,2]
[383655318,1757074233273,-1462.70594952,0.00024639,2]
[383655319,1757074233283,-1682.898243,0.0002464,2]
[383655320,1757074233292,-150.0,0.00024642,2]
[383655321,1757074233302,-150.0,0.00024642,2]
[383655322,1757074233311,-150.0,0.00024642,2]
[383655323,1757074233321,-150.0,0.00024642,2]
[383655324,1757074233331,-150.0,0.00024642,2]
[383655325,1757074233340,-113.11353863,0.00024642,2]
[383655326,1757074233353,-36.88646137,0.00024642,2]
[383655327,1757074233363,-459.90153657,0.00024642,2]
[383655328,1757074233375,-40.09846343,0.00024642,2]
[383655329,1757074233385,-150.0,0.00024642,2]
[383655330,1757074233396,-150.0,0.00024642,2]
[383655331,1757074233406,-200.0,0.00024642,2]
[383655332,1757074233416,-200.0,0.00024642,2]
[383655333,1757074233427,-150.0,0.00024642,2]
[383655334,1757074233437,-500.0,0.00024642,2]
[383655335,1757074233447,-150.0,0.00024642,2]
[383655336,1757074233456,-500.0,0.00024642,2]
[383655337,1757074233466,-150.0,0.00024642,2]
[383655338,1757074233476,-500.0,0.00024642,2]
[383655339,1757074233485,-1903.09053647,0.00024642,2]
[383655340,1757074233495,-2123.28282995,0.00024644,2]
[383655341,1757074233505,-2343.47512342,0.00024645,2]
[383655342,1757074233515,-300.83,0.00024647,2]
[383655343,1757074233525,-2563.6674169,0.00024647,2]
[383655344,1757074233534,-400.0,0.00024657,2]
[383655345,1757074233544,-402.41226014,0.00024657,2]
[383655346,1757074233553,-341.76575368,0.00024657,2]
[383655347,1757074233563,-400.0,0.00024657,2]
[383655348,1757074233573,-440.40563943,0.00024657,2]
[383655349,1757074233583,-400.0,0.00024657,2]
[383655350,1757074233592,-400.0,0.00024657,2]
[383655351,1757074233601,-400.0,0.00024657,2]
[383655352,1757074233610,-400.0,0.00024657,2]
[383655353,1757074233619,-400.0,0.00024657,2]
[383655354,1757074233629,-402.86346352,0.00024657,2]
[383655355,1757074233638,-402.59320898,0.00024657,2]
[383655356,1757074233648,-400.0,0.00024657,2]
[383655357,1757074233658,-400.0,0.00024657,2]
[383655358,1757074233667,-400.0,0.00024657,2]
[383655359,1757074233677,-400.0,0.00024657,2]
[383655360,1757074233687,-400.0,0.00024657,2]
[383655361,1757074233698,-400.0,0.00024657,2]
[383655362,1757074233707,-400.0,0.00024657,2]
[383655363,1757074233717,-400.0,0.00024657,2]
[383655364,1757074233726,-400.0,0.00024657,2]
[383655365,1757074233736,-400.0,0.00024657,2]
[383655366,1757074233748,-400.0,0.00024657,2]
[383655367,1757074233758,-400.0,0.00024657,2]
[383655368,1757074233768,-400.0,0.00024657,2]
[383655369,1757074233777,-400.0,0.00024657,2]
[383655370,1757074233787,-406.86589557,0.00024657,2]
[383655371,1757074233796,-400.0,0.00024657,2]
[383655372,1757074233806,-400.0,0.00024657,2]
[383655373,1757074233816,-400.0,0.00024657,2]
[383655374,1757074233825,-400.0,0.00024657,2]
[383655375,1757074233835,-400.0,0.00024657,2]
[383655376,1757074233844,-400.0,0.00024657,2]
[383655377,1757074233854,-400.0,0.00024657,2]
[383655378,1757074233864,-400.0,0.00024657,2]
[383655379,1757074233873,-500.0,0.00024657,2]
[383655380,1757074233883,-400.0,0.00024657,2]
[383655381,1757074233892,-400.0,0.00024657,2]
[383655382,1757074233902,-400.0,0.00024657,2]
[383655383,1757074233911,-400.0,0.00024657,2]
[383655384,1757074233920,-400.0,0.00024657,2]
[383655385,1757074233930,-400.0,0.00024657,2]
[383655386,1757074233939,-402.35717082,0.00024657,2]
[383655387,1757074233949,-403.97271051,0.00024657,2]
[383655388,1757074233958,-500.0,0.00024657,2]
[383655389,1757074233967,-400.0,0.00024657,2]
[383655390,1757074233977,-412.20717278,0.00024657,2]
[383655391,1757074233987,-69.15346799,0.00024657,2]
[383655392,1757074234003,-330.84653201,0.00024657,2]
[383655393,1757074234013,-400.0,0.00024657,2]
[383655394,1757074234022,-400.0,0.00024657,2]
[383655395,1757074234032,-400.0,0.00024657,2]
[383655396,1757074234041,-400.0,0.00024657,2]
[383655397,1757074234051,-400.0,0.00024657,2]
[383655398,1757074234060,-400.0,0.00024657,2]
[383655399,1757074234070,-221.96775248,0.00024657,2]
[383655400,1757074234080,-414.72950669,0.00024657,2]
[383655401,1757074234089,-400.0,0.00024657,2]
[383655402,1757074234099,-400.0,0.00024657,2]
[383655403,1757074234109,-400.0,0.00024657,2]
[383655404,1757074234119,-438.81264382,0.00024657,2]
[383655405,1757074234128,-400.0,0.00024657,2]
[383655406,1757074234138,-174.39075269,0.00024657,2]
[383655407,1757074234148,-400.0,0.00024657,2]
[383655408,1757074234158,-400.0,0.00024657,2]
[383655409,1757074234167,-400.0,0.00024657,2]
[383655410,1757074234177,-333.26281231,0.00024657,2]
[383655411,1757074234192,-95.16860569,0.00024657,2]
[383655412,1757074234202,-403.79016634,0.00024657,2]
[383655413,1757074234212,-319.7055425,0.00024657,2]
[383655414,1757074234223,-80.2944575,0.00024657,2]
[383655415,1757074234233,-400.0,0.00024657,2]
[383655416,1757074234242,-174.07382663,0.00024657,2]
[383655436,1757074237897,-225.92617337,0.00024657,2]
[383655438,1757074237906,-400.0,0.00024657,2]
[383655440,1757074237915,-400.0,0.00024657,2]
[383655442,1757074237925,-400.0,0.00024657,2]
[383655444,1757074237934,-400.0,0.00024657,2]
[383655445,1757074237943,-400.0,0.00024657,2]
[383655446,1757074237953,-400.0,0.00024657,2]
[383655447,1757074237962,-400.0,0.00024657,2]
[383655448,1757074237972,-400.0,0.00024657,2]
[383655449,1757074237982,-400.0,0.00024657,2]
[383655450,1757074237991,-400.0,0.00024657,2]
[383655451,1757074238000,-400.0,0.00024657,2]
[383655452,1757074238010,-400.0,0.00024657,2]
[383655453,1757074238019,-400.0,0.00024657,2]
[383655454,1757074238029,-308.31970824,0.00024657,2]
[383655455,1757074238041,-91.68029176,0.00024657,2]
[383655456,1757074238051,-400.0,0.00024657,2]
[383655457,1757074238060,-166.4472403,0.00024657,2]
[383655458,1757074238070,-400.0,0.00024657,2]
[383655459,1757074238079,-400.0,0.00024657,2]
[383655460,1757074238088,-400.0,0.00024657,2]
[383655461,1757074238097,-150.0,0.00024657,2]
[383655462,1757074238106,-400.0,0.00024657,2]
[383655463,1757074238116,-400.0,0.00024657,2]
[383655464,1757074238125,-400.0,0.00024657,2]
[383655465,1757074238134,-400.0,0.00024657,2]
[383655466,1757074238143,-403.47999256,0.00024657,2]
[383655467,1757074238153,-400.0,0.00024657,2]
[383655468,1757074238163,-400.0,0.00024657,2]
[383655470,1757074238173,-400.0,0.00024657,2]
[383655472,1757074238183,-400.0,0.00024657,2]
[383655474,1757074238192,-409.88935801,0.00024657,2]
[383655476,1757074238201,-423.78374141,0.00024657,2]
[383655478,1757074238210,-400.0,0.00024657,2]
[383655480,1757074238219,-400.0,0.00024657,2]
[383655482,1757074238228,-402.6567876,0.00024657,2]
[383655484,1757074238237,-400.0,0.00024657,2]
[383655486,1757074238246,-400.0,0.00024657,2]
[383655488,1757074238256,-400.0,0.00024657,2]
[383655490,1757074238265,-400.0,0.00024657,2]
[383655492,1757074238274,-300.0,0.00024657,2]
[383655494,1757074238283,-400.0,0.00024657,2]
[383655496,1757074238292,-400.0,0.00024657,2]
[383655498,1757074238302,-400.0,0.00024657,2]
[383655500,1757074238311,-400.0,0.00024657,2]
[383655502,1757074238321,-400.0,0.00024657,2]
[383655504,1757074238330,-400.0,0.00024657,2]
[383655506,1757074238339,-400.0,0.00024657,2]
[383655508,1757074238348,-400.0,0.00024657,2]
[383655510,1757074238357,-400.0,0.00024657,2]
[383655512,1757074238367,-344.91595824,0.00024657,2]
[383655514,1757074238381,-57.86354831,0.00024657,2]
[383655516,1757074238390,-400.0,0.00024657,2]
[383655518,1757074238400,-400.0,0.00024657,2]
[383655520,1757074238409,-400.0,0.00024657,2]
[383655522,1757074238418,-400.0,0.00024657,2]
[383655524,1757074238427,-400.0,0.00024657,2]
[383655526,1757074238437,-400.0,0.00024657,2]
[383655527,1757074238446,-400.0,0.00024657,2]
[383655529,1757074238456,-235.11382688,0.00024657,2]
[383655530,1757074238467,-164.88617312,0.00024657,2]
[383655531,1757074238476,-400.0,0.00024657,2]
[383655532,1757074238485,-400.0,0.00024657,2]
[383655533,1757074238493,-283.05297821,0.00024657,2]
[383655534,1757074238504,-116.94702179,0.00024657,2]
[383655535,1757074238513,-400.0,0.00024657,2]
[383655536,1757074238521,-117.98481836,0.00024657,2]
[383655537,1757074238532,-282.01518164,0.00024657,2]
[383655538,1757074238540,-400.0,0.00024657,2]
[383655539,1757074238549,-400.0,0.00024657,2]
[383655540,1757074238558,-400.0,0.00024657,2]
[383655541,1757074238566,-400.0,0.00024657,2]
[383655542,1757074238575,-400.0,0.00024657,2]
[383655543,1757074238583,-400.0,0.00024657,2]
[383655544,1757074238592,-400.0,0.00024657,2]
[383655545,1757074238600,-400.0,0.00024657,2]
[383655546,1757074238609,-400.0,0.00024657,2]
[383655547,1757074238618,-400.0,0.00024657,2]
[383655548,1757074238626,-400.0,0.00024657,2]
[383655549,1757074238636,-400.0,0.00024657,2]
[383655550,1757074238646,-403.04275955,0.00024657,2]
[383655551,1757074238654,-400.0,0.00024657,2]
[383655552,1757074238663,-400.0,0.00024657,2]
[383655553,1757074238672,-400.0,0.00024657,2]
[383655554,1757074238681,-400.0,0.00024657,2]
[383655555,1757074238691,-181.94205881,0.00024657,2]
[383655556,1757074238708,-218.05794119,0.00024657,2]
[383655557,1757074238718,-400.0,0.00024657,2]
[383655558,1757074238727,-400.0,0.00024657,2]
[383655559,1757074238737,-400.0,0.00024657,2]
[383655560,1757074238748,-400.0,0.00024657,2]
[383655561,1757074238759,-400.0,0.00024657,2]
[383655562,1757074238769,-400.0,0.00024657,2]
[383655563,1757074238778,-400.0,0.00024657,2]
[383655564,1757074238787,-400.0,0.00024657,2]
[383655565,1757074238797,-400.0,0.00024657,2]
[383655566,1757074238806,-400.0,0.00024657,2]
[383655567,1757074238815,-400.0,0.00024657,2]
[383655568,1757074238827,-400.0,0.00024657,2]
[383655569,1757074238836,-400.0,0.00024657,2]
[383655570,1757074238846,-400.0,0.00024657,2]
[383655571,1757074238855,-400.0,0.00024657,2]
[383655572,1757074238864,-400.0,0.00024657,2]
[383655573,1757074238873,-400.0,0.00024657,2]
[383655574,1757074238883,-402.35843709,0.00024657,2]
[383655575,1757074238900,-403.87701139,0.00024657,2]
[383655576,1757074238911,-400.0,0.00024657,2]
[383655577,1757074238920,-400.0,0.00024657,2]
[383655578,1757074238930,-24.74400003,0.00024657,2]
[383655579,1757074238943,-375.25599997,0.00024657,2]
[383655580,1757074238953,-400.0,0.00024657,2]
[383655581,1757074238962,-69.36886278,0.00024657,2]
[383655582,1757074238974,-269.89749788,0.00024657,2]
[383655588,1757074240172,-60.73363934,0.00024657,2]
[383655589,1757074240182,-373.07636068,0.00024657,2]
[383655590,1757074240194,-26.92363932,0.00024657,2]
[383655591,1757074240203,-405.04183524,0.00024657,2]
[383655592,1757074240212,-400.0,0.00024657,2]
[383655593,1757074240225,-400.0,0.00024657,2]
[383655594,1757074240234,-400.0,0.00024657,2]
[383655595,1757074240244,-173.77117081,0.00024657,2]
[383655596,1757074240253,-400.0,0.00024657,2]
[383655597,1757074240263,-400.0,0.00024657,2]
[383655598,1757074240272,-400.0,0.00024657,2]
[383655599,1757074240281,-400.0,0.00024657,2]
[383655600,1757074240291,-400.0,0.00024657,2]
[383655601,1757074240300,-400.0,0.00024657,2]
[383655602,1757074240309,-400.0,0.00024657,2]
[383655603,1757074240319,-400.0,0.00024657,2]
[383655604,1757074240329,-400.0,0.00024657,2]
[383655605,1757074240339,-400.0,0.00024657,2]
[383655606,1757074240348,-400.0,0.00024657,2]
[383655607,1757074240358,-400.0,0.00024657,2]
[383655608,1757074240367,-400.0,0.00024657,2]
[383655609,1757074240377,-400.0,0.00024657,2]
[383655610,1757074240387,-400.0,0.00024657,2]
[383655611,1757074240397,-412.39334865,0.00024657,2]
[383655612,1757074240406,-400.0,0.00024657,2]
[383655613,1757074240415,-400.0,0.00024657,2]
[383655614,1757074240424,-400.0,0.00024657,2]
[383655615,1757074240433,-400.0,0.00024657,2]
[383655616,1757074240443,-400.0,0.00024657,2]
[383655617,1757074240457,-400.0,0.00024657,2]
[383655618,1757074240467,-400.0,0.00024657,2]
[383655619,1757074240476,-267.88003804,0.00024657,2]
[383655620,1757074240496,-138.83014721,0.00024657,2]
[383655621,1757074240505,-400.0,0.00024657,2]
[383655622,1757074240514,-497.33,0.00024657,2]
[383655623,1757074240524,-192.51025657,0.00024657,2]
[383655624,1757074240536,-207.48974343,0.00024657,2]
[383655625,1757074240546,-47.95360335,0.00024657,2]
[383655626,1757074240598,-352.04639665,0.00024657,2]
[383655627,1757074240607,-400.0,0.00024657,2]
[383655628,1757074240617,-400.0,0.00024657,2]
[383655629,1757074240626,-400.0,0.00024657,2]
[383655630,1757074240636,-246.50167259,0.00024657,2]
[383655631,1757074240647,-153.49832741,0.00024657,2]
[383655632,1757074240657,-400.0,0.00024657,2]
[383655633,1757074240667,-400.0,0.00024657,2]
[383655634,1757074240676,-400.0,0.00024657,2]
[383655635,1757074240688,-400.0,0.00024657,2]
[383655636,1757074240698,-400.0,0.00024657,2]
[383655637,1757074240707,-63.89717259,0.00024657,2]
[383655638,1757074240719,-336.10282741,0.00024657,2]
[383655639,1757074240729,-403.37555497,0.00024657,2]
[383655640,1757074240738,-400.0,0.00024657,2]
[383655641,1757074240750,-400.0,0.00024657,2]
[383655642,1757074240760,-127.62793262,0.00024657,2]
[383655643,1757074240771,-272.37206738,0.00024657,2]
[383655644,1757074240781,-400.0,0.00024657,2]
[383655645,1757074240791,-400.0,0.00024657,2]
[383655646,1757074240800,-388.90819562,0.00024657,2]
[383655647,1757074240812,-111.09180438,0.00024657,2]
[383655648,1757074240822,-400.0,0.00024657,2]
[383655649,1757074240832,-400.0,0.00024657,2]
[383655650,1757074240842,-400.0,0.00024657,2]
[383655651,1757074240851,-400.0,0.00024657,2]
[383655652,1757074240861,-402.82,0.00024657,2]
[383655653,1757074240870,-400.0,0.00024657,2]
[383655654,1757074240880,-400.0,0.00024657,2]
[383655655,1757074240889,-400.0,0.00024657,2]
[383655656,1757074240899,-400.0,0.00024657,2]
[383655657,1757074240909,-229.19754845,0.00024657,2]
[383655658,1757074240919,-400.0,0.00024657,2]
[383655659,1757074240932,-400.0,0.00024657,2]
[383655660,1757074240941,-400.0,0.00024657,2]
[383655661,1757074240951,-400.0,0.00024657,2]
[383655662,1757074240961,-400.0,0.00024657,2]
[383655663,1757074240971,-400.0,0.00024657,2]
[383655664,1757074240980,-462.36916833,0.00024657,2]
[383655665,1757074240990,-400.0,0.00024657,2]
[383655666,1757074241000,-400.0,0.00024657,2]
[383655667,1757074241010,-400.0,0.00024657,2]
[383655668,1757074241019,-400.0,0.00024657,2]
[383655669,1757074241029,-400.0,0.00024657,2]
[383655670,1757074241038,-400.0,0.00024657,2]
[383655671,1757074241047,-400.0,0.00024657,2]